[Event "Hungarian Youth-ch II 2024"]
[Site "Szolnok"]
[Date "2024.04.05"]
[Round "7.4"]
[White "Wang, Luomeng"]
[Black "Hangyal, Anna"]
[Result "0-1"]
[ECO "D11"]
[WhiteElo "1823"]
[BlackElo "1766"]
[Annotator "NA RC"]
[PlyCount "114"]
[EventDate "2024.03.31"]
[EventType "swiss"]
[EventCountry "HUN"]
[SourceTitle "playchess.com"]
[Source "ChessBase"]
[SourceQuality "1"]
[TimeControl "5400+30"]

1. d4 {[%emt 0:00:04]} d5 {[%emt 0:00:04]} 2. c4 {[%emt 0:00:04]} c6 {[%emt 0:00:02]} 3. Nf3 {[%emt 0:00:14]} Nf6 {[%emt 0:00:06]} 4. g3 {[%emt 0:00:05]} e6 {[%emt 0:00:12]} 5. Bg2 {[%emt 0:00:27]} Bd6 {[%emt 0:00:22]} 6. O-O {[%emt 0:00:59]} Nbd7 {[%emt 0:00:11]} 7. Qc2 {[%emt 0:03:00]} O-O {[%emt 0:00:57]} 8. Rd1 {[%emt 0:02:52]} dxc4 {[%emt 0:11:52] E01: Catalan: Early deviations.} 9. Qxc4 {[%emt 0:00:49]} Qc7 {[%emt 0:00:08]} 10. Qc2 {[%emt 0:03:05]} Re8 {[%emt 0:03:51]} 11. e4 {[%emt 0:03:45]} e5 {[%emt 0:01:27]} 12. Nc3 {[%emt 0:02:11]} exd4 {[%emt 0:25:39]} 13. Nxd4 {[%emt 0:00:38]} Bc5 {[%emt 0:00:09]} 14. Bf4 {[%emt 0:03:11]} Ne5 {[%emt 0:09:30]} 15. Nf3 {[%emt 0:07:49]} Nfg4 {[%emt 0:06:23]} 16. Rd2 {[%emt 0:04:36]} Qe7 {[%emt 0:01:37]} 17. Nxe5 {[%emt 0:05:28]} Nxe5 {[%emt 0:00:21]} 18. Na4 {[%emt 0:08:19]} Bb4 {[%emt 0:01:12]} 19. Rd4 {[%emt 0:01:40]} Ba5 {[%emt 0:05:47]} 20. b4 {[%emt 0:10:09]} Bxb4 {[%emt 0:02:05]} 21. Bxe5 {[%emt 0:01:19]} (21. Rad1 $142 Ba5 22. Bd2 Bxd2 23. R1xd2) 21... Qxe5 {[%emt 0:00:13]} 22. Qb2 {[%emt 0:01:33]} Bf8 {[%emt 0:00:46]} 23. Rad1 {[%emt 0:02:56]} b5 {[%emt 0:05:47]} 24. Nc3 {[%emt 0:01:48]} Ba6 25. Qb3 {[%emt 0:07:04]} Qf6 {[%emt 0:02:53]} 26. Qc2 {[%emt 0:04:22]} b4 {[%emt 0:01:30]} 27. Na4 {[%emt 0:01:32]} Rad8 {[%emt 0:06:38]} 28. Rxd8 {[%emt 0:06:00]} Rxd8 {[%emt 0:00:09]} 29. f4 {[%emt 0:03:36]} c5 {[%emt 0:02:15]} 30. Kf2 {[%emt 0:04:01]} Bb5 {[%emt 0:01:51]} 31. e5 {[%emt 0:01:01]} Qe7 {[%emt 0:00:53]} 32. Bd5 {[%emt 0:02:22]} Kh8 {[%emt 0:03:09]} 33. h4 {[%emt 0:02:21]} c4 {[%emt 0:00:52]} 34. Kf3 {[%emt 0:01:56]} Rxd5 {[%emt 0:03:39]} 35. Rxd5 {[%emt 0:00:40]} Qb7 {[%emt 0:01:11]} 36. Ke4 {[%emt 0:01:08]} Bc6 {[%emt 0:00:58]} 37. Qxc4 {[%emt 0:00:48]} Bxd5+ {[%emt 0:01:29]} 38. Qxd5 {[%emt 0:00:10]} Qc7 {[%emt 0:01:11]} 39. Kf3 {[%emt 0:02:45]} h6 {[%emt 0:01:37]} 40. Qa8 {[%emt 0:01:14]} Kg8 {[%emt 0:00:13]} 41. Qe4 {[%emt 0:00:29]} (41. Qd5 $17) 41... Qa5 {[%emt 0:01:03]} 42. Qc6 {[%emt 0:00:37]} Qd8 {[%emt 0:00:07]} 43. Ke4 {[%emt 0:00:56]} Qd2 {[%emt 0:00:17]} 44. Kf5 $2 {[%emt 0:00:49]} (44. Kf3) 44... g6+ {[%emt 0:00:44]} 45. Kg4 {[%emt 0:00:25]} Qe2+ {[%emt 0:00:20]} 46. Kh3 {[%emt 0:00:34]} Qxa2 {[%emt 0:00:12]} 47. h5 {[%emt 0:00:52]} Qe6+ {[%emt 0:00:24]} 48. Qxe6 {[%emt 0:00:08]} fxe6 {[%emt 0:00:01]} 49. g4 {[%emt 0:00:39]} gxh5 {[%emt 0:00:12]} 50. gxh5 {[%emt 0:00:04]} b3 {[%emt 0:00:10]} 51. Kg4 {[%emt 0:00:25]} Ba3 {[%emt 0:01:05]} 52. f5 {[%emt 0:00:18]} Kf7 {[%emt 0:00:04]} 53. f6 {[%emt 0:00:29]} b2 {[%emt 0:00:06]} 54. Nc3 {[%emt 0:00:19]} Bb4 {[%emt 0:00:07]} 55. Nb1 {[%emt 0:00:13]} a5 {[%emt 0:00:05]} 56. Kf3 {[%emt 0:00:14]} a4 {[%emt 0:00:07]} 57. Ke2 {[%emt 0:00:27]} a3 {[%emt 0:00:04]} 0-1

[Event "Hungarian Youth-ch II 2024"]
[Site "Szolnok"]
[Date "2024.04.05"]
[Round "7.5"]
[White "Illes-Nagy, Nora"]
[Black "Ferenczy, Nora"]
[Result "1-0"]
[ECO "D43"]
[WhiteElo "1818"]
[BlackElo "1721"]
[Annotator "NA RC"]
[PlyCount "133"]
[EventDate "2024.03.31"]
[EventType "swiss"]
[EventCountry "HUN"]
[SourceTitle "playchess.com"]
[Source "ChessBase"]
[SourceQuality "1"]
[TimeControl "5400+30"]

1. d4 {[%emt 0:00:02]} d5 {[%emt 0:00:04]} 2. c4 {[%emt 0:00:09]} c6 {[%emt 0:00:03]} 3. Nc3 {[%emt 0:00:11]} Nf6 {[%emt 0:00:05]} 4. Nf3 {[%emt 0:00:13]} e6 {[%emt 0:00:04]} 5. cxd5 {[%emt 0:00:19]} exd5 {[%emt 0:00:05]} 6. Bg5 {[%emt 0:00:28]} Be7 {[%emt 0:00:06]} 7. e3 {[%emt 0:00:28]} Nbd7 {[%emt 0:00:06]} 8. Qc2 {[%emt 0:00:27]} O-O {[%emt 0:00:25]} 9. Bd3 {[%emt 0:00:30]} Re8 {[%emt 0:00:08]} 10. O-O {[%emt 0:00:30]} Nf8 {[%emt 0:00:19]} 11. Rab1 {[%emt 0:04:07]} a5 {[%emt 0:00:17]} 12. a3 {[%emt 0:00:23]} Ng6 {[%emt 0:01:58]} 13. b4 {[%emt 0:02:40]} axb4 {[%emt 0:00:30]} 14. axb4 {[%emt 0:00:13]} Bd6 {[%emt 0:01:02] has lost popularity (14...Ne4). D36: Queen's Gambit Declined: Exchange Variation: Main line (5 Bg5 c6 6 Qc2).} 15. h3 {[%emt 0:03:55]} h6 {[%emt 0:05:44]} 16. Bxf6 {[%emt 0:06:09]} Qxf6 {[%emt 0:00:27]} 17. Nh2 $2 $146 {[%emt 0:07:31]} (17. e4 $1 $11) ({Predecessor:} 17. b5 Bxh3 18. Bxg6 fxg6 19. gxh3 Qxf3 20. Qxg6 Qxh3 21. Qxd6 Re6 22. Qg3 Qh5 23. bxc6 {½-½ Sabiani,C (1793)-Koch,M (1695) FRA-chT Top 12 (Women) GpB 2022 (3.2)}) 17... Nh4 {[%emt 0:11:53]} 18. Ng4 {[%emt 0:08:00]} (18. Ra1 $17 {was called for.} Rxa1 19. Rxa1) 18... Qg5 {[%emt 0:10:07]} 19. f4 {[%emt 0:01:32]} Qe7 {[%emt 0:09:22]} 20. Nd1 {[%emt 0:06:09]} h5 {[%emt 0:17:48]} 21. Ne5 {[%emt 0:03:19]} Bxe5 {[%emt 0:07:20]} 22. dxe5 {[%emt 0:00:21]} Qe6 {[%emt 0:01:15]} (22... g6 $11) 23. Qe2 {[%emt 0:08:20]} (23. Nc3 $142) 23... Qh6 {[%emt 0:06:24]} 24. Qc2 {[%emt 0:05:26]} Qe6 {[%emt 0:01:49]} 25. b5 {[%emt 0:02:01]} Nf5 {[%emt 0:02:17]} 26. bxc6 {[%emt 0:02:09]} bxc6 {[%emt 0:02:22]} 27. Bxf5 {[%emt 0:00:54]} Qxf5 {[%emt 0:00:08]} 28. Qxc6 {[%emt 0:01:06]} Ba6 {[%emt 0:03:24]} 29. Ra1 {[%emt 0:04:23]} Qd3 {[%emt 0:05:29]} 30. Nf2 {[%emt 0:05:06]} Qc4 {[%emt 0:03:05]} 31. Rfc1 {[%emt 0:01:05]} Qxc6 {[%emt 0:00:47]} 32. Rxc6 {[%emt 0:00:09]} Bc4 {[%emt 0:00:35]} 33. Rxa8 {[%emt 0:01:32]} Rxa8 {[%emt 0:00:02]} 34. e4 {[%emt 0:02:00]} Ra1+ {[%emt 0:00:55]} 35. Kh2 {[%emt 0:00:13]} Ra2 {[%emt 0:01:12]} 36. Nd1 {[%emt 0:11:28]} Rd2 {[%emt 0:03:33]} 37. Ne3 {[%emt 0:01:03]} Ba2 {[%emt 0:00:40]} 38. Nxd5 {[%emt 0:00:45]} Bb3 {[%emt 0:03:13]} 39. Rd6 {[%emt 0:06:03]} Re2 {[%emt 0:00:29]} 40. Nc3 {[%emt 0:01:03]} Re3 {[%emt 0:00:22]} 41. Rc6 {[%emt 0:00:31]} Kh7 {[%emt 0:00:59]} 42. Rc7 {[%emt 0:01:42]} Rd3 {[%emt 0:00:55]} 43. Kg1 {[%emt 0:00:52]} Rd2 {[%emt 0:01:34]} 44. h4 {[%emt 0:02:32]} Kh6 {[%emt 0:00:56]} 45. Kf1 {[%emt 0:00:48]} Kh7 {[%emt 0:00:41]} 46. g3 {[%emt 0:01:37]} Rc2 $2 {[%emt 0:01:22]} (46... Kg8 47. Nb5 g6 48. Rc8+ Kg7) 47. Nd5 {[%emt 0:00:48]} Rxc7 {[%emt 0:00:49]} 48. Nxc7 {[%emt 0:00:06]} Bc2 {[%emt 0:00:06]} 49. Kf2 {[%emt 0:00:47]} Bxe4 {[%emt 0:00:21]} 50. e6 {[%emt 0:00:52]} fxe6 {[%emt 0:00:14]} 51. Nxe6 {[%emt 0:00:04]} Bd5 {[%emt 0:00:37]} 52. Ng5+ {[%emt 0:01:13]} (52. Nd4 $14) 52... Kg6 {[%emt 0:00:17]} 53. Nf3 {[%emt 0:01:11]} Bxf3 {[%emt 0:00:58]} 54. Kxf3 {[%emt 0:00:04]} Kf5 {[%emt 0:00:05]} 55. Kf2 {[%emt 0:00:52]} Kg4 {[%emt 0:00:15]} 56. Kg2 {[%emt 0:00:13]} g6 {[%emt 0:00:34]} 57. Kf2 {[%emt 0:00:22]} Kf5 {[%emt 0:01:42]} 58. Kf3 {[%emt 0:00:10]} Kf6 {[%emt 0:00:21]} 59. g4 {[%emt 0:00:44]} Ke6 $2 {[%emt 0:00:27]} (59... hxg4+ $11 60. Kxg4 Ke6) 60. gxh5 {[%emt 0:00:48]} gxh5 {[%emt 0:00:34]} 61. Ke4 {[%emt 0:00:06]} Kf6 {[%emt 0:00:26]} 62. f5 {[%emt 0:00:15]} Kf7 {[%emt 0:00:31]} 63. Ke5 {[%emt 0:00:05]} Ke7 {[%emt 0:00:08]} 64. f6+ {[%emt 0:00:15]} Kf7 {[%emt 0:00:08]} 65. Kf5 {[%emt 0:00:12]} Kf8 {[%emt 0:00:15]} 66. Kg6 {[%emt 0:00:29]} Kg8 {[%emt 0:00:08]} 67. Kxh5 {[%emt 0:00:05]} 1-0

[Event "Hungarian Youth-ch II 2024"]
[Site "Szolnok"]
[Date "2024.04.05"]
[Round "7.6"]
[White "Horvath, Adel"]
[Black "Biro, Csilla"]
[Result "1-0"]
[ECO "A40"]
[WhiteElo "1676"]
[BlackElo "1632"]
[Annotator "NA RC"]
[PlyCount "91"]
[EventDate "2024.03.31"]
[EventType "swiss"]
[EventCountry "HUN"]
[SourceTitle "playchess.com"]
[Source "ChessBase"]
[SourceQuality "1"]
[TimeControl "5400+30"]

1. d4 {[%emt 0:00:02]} e6 {[%emt 0:00:08]} 2. c4 {[%emt 0:00:07]} d5 {[%emt 0:00:09]} 3. Nf3 {[%emt 0:00:04]} Nf6 {[%emt 0:00:25]} 4. g3 {[%emt 0:00:11]} c5 {[%emt 0:01:46]} 5. Bg2 {[%emt 0:00:46]} dxc4 {[%emt 0:06:42]} 6. Qa4+ {[%emt 0:07:45]} Nc6 {[%emt 0:01:25]} 7. Ne5 {[%emt 0:01:25]} Nd5 {[%emt 0:17:37]} 8. dxc5 {[%emt 0:07:59]} Bxc5 {[%emt 0:13:01]} 9. Nxc6 {[%emt 0:02:31]} Qd7 {[%emt 0:00:24]} 10. Qxc4 {[%emt 0:07:38]} Qxc6 {[%emt 0:01:14]} 11. Nd2 {[%emt 0:01:06]} Qb6 {[%emt 0:08:21]} 12. O-O {[%emt 0:09:35]} O-O {[%emt 0:03:51]} 13. Nb3 {[%emt 0:01:29]} Be7 {[%emt 0:02:31]} 14. e4 {[%emt 0:00:42]} Nf6 {[%emt 0:04:03]} 15. Be3 {[%emt 0:14:14]} Qb4 {[%emt 0:07:56]} 16. Rac1 {[%emt 0:12:12]} Bd7 {[%emt 0:07:10]} 17. Qxb4 {[%emt 0:04:49]} Bxb4 {[%emt 0:00:49]} 18. a3 {[%emt 0:00:16]} Bd6 {[%emt 0:05:33]} 19. Rfd1 {[%emt 0:08:14]} Be5 {[%emt 0:03:05]} 20. Bd4 {[%emt 0:00:42]} Bxd4 {[%emt 0:00:49]} 21. Nxd4 {[%emt 0:01:24]} Rfe8 {[%emt 0:04:19]} 22. h3 {[%emt 0:03:10]} e5 {[%emt 0:01:08]} 23. Nf5 {[%emt 0:00:49]} Bc6 {[%emt 0:00:48]} 24. Nd6 {[%emt 0:01:04]} Red8 {[%emt 0:00:42]} 25. Nc4 {[%emt 0:00:59]} Re8 {[%emt 0:01:06]} 26. Re1 {[%emt 0:02:06]} Rab8 {[%emt 0:02:13]} 27. Na5 {[%emt 0:01:46]} Bb5 {[%emt 0:00:37]} 28. Nc4 {[%emt 0:02:23]} Bc6 {[%emt 0:01:37]} 29. g4 {[%emt 0:01:23]} h6 {[%emt 0:01:58]} 30. b3 {[%emt 0:00:38]} Nd7 {[%emt 0:02:00]} 31. Na5 {[%emt 0:01:03]} Rec8 {[%emt 0:00:45]} 32. Red1 {[%emt 0:01:21]} Nf6 {[%emt 0:00:35]} 33. Nxc6 {[%emt 0:01:20]} Rxc6 {[%emt 0:00:45]} 34. Rxc6 {[%emt 0:00:15]} bxc6 {[%emt 0:00:00]} 35. b4 {[%emt 0:00:00]} Kf8 {[%emt 0:00:31]} 36. Kf1 {[%emt 0:00:19]} Ke7 {[%emt 0:01:00]} 37. Ke2 {[%emt 0:00:19]} Nd7 {[%emt 0:00:30]} 38. Ke3 {[%emt 0:00:34]} c5 {[%emt 0:00:27]} 39. Rb1 {[%emt 0:00:41]} Kd6 {[%emt 0:00:39]} 40. Bf1 {[%emt 0:01:01]} cxb4 {[%emt 0:00:26]} 41. axb4 {[%emt 0:00:18]} Kc6 {[%emt 0:00:38]} 42. Bc4 {[%emt 0:00:59]} f6 {[%emt 0:00:19]} 43. Bd5+ {[%emt 0:01:05]} Kd6 {[%emt 0:00:36]} 44. b5 {[%emt 0:01:18]} Kc5 {[%emt 0:00:33]} 45. Bc6 {[%emt 0:00:18]} Kd6 {[%emt 0:00:46]} 46. Rd1+ {[%emt 0:00:24]} 1-0

[Event "Hungarian Youth-ch II 2024"]
[Site "Szolnok"]
[Date "2024.04.05"]
[Round "7.7"]
[White "Farkas, Roza"]
[Black "Vadkerti, Anna"]
[Result "1/2-1/2"]
[ECO "E91"]
[WhiteElo "1474"]
[BlackElo "1502"]
[Annotator "NA RC"]
[PlyCount "42"]
[EventDate "2024.03.31"]
[EventType "swiss"]
[EventCountry "HUN"]
[SourceTitle "playchess.com"]
[Source "ChessBase"]
[SourceQuality "1"]
[TimeControl "5400+30"]

1. d4 {[%emt 0:00:04]} Nf6 {[%emt 0:00:06]} 2. c4 {[%emt 0:00:17]} g6 {[%emt 0:00:06]} 3. Nf3 {[%emt 0:00:42]} Bg7 {[%emt 0:00:09]} 4. Nc3 {[%emt 0:00:44]} d6 {[%emt 0:00:08]} 5. e4 {[%emt 0:01:20]} O-O {[%emt 0:00:13]} 6. Be2 {[%emt 0:01:31]} c5 {[%emt 0:00:15]} 7. Be3 {[%emt 0:07:19]} Ng4 {[%emt 0:01:05]} 8. O-O {[%emt 0:07:10]} Nxe3 {[%emt 0:01:02]} 9. fxe3 {[%emt 0:00:24]} Bh6 {[%emt 0:11:47]} 10. Qd2 {[%emt 0:06:03]} Bg4 {[%emt 0:02:04]} 11. Rad1 {[%emt 0:03:30]} Bxf3 {[%emt 0:08:00]} 12. Rxf3 {[%emt 0:00:33]} cxd4 {[%emt 0:00:45]} 13. Qxd4 {[%emt 0:01:06]} Nc6 {[%emt 0:00:46]} 14. Qd2 {[%emt 0:01:11]} Rc8 {[%emt 0:07:08]} 15. Nd5 {[%emt 0:04:27]} Ne5 {[%emt 0:04:01]} 16. Rh3 {[%emt 0:05:02]} Bg5 {[%emt 0:04:08]} 17. b3 {[%emt 0:06:09]} b6 {[%emt 0:10:33]} 18. Rf1 {[%emt 0:04:25]} e6 {[%emt 0:03:41]} 19. Nf4 {[%emt 0:02:05]} h5 {[%emt 0:05:50]} 20. Rd1 {[%emt 0:04:59]} Be7 {[%emt 0:01:22]} 21. Bd3 {[%emt 0:09:07]} h4 {[%emt 0:03:42]} 1/2-1/2

[Event "Hungarian Youth-ch II 2024"]
[Site "Szolnok"]
[Date "2024.04.05"]
[Round "8.5"]
[White "Medvegy, Maria"]
[Black "Illes-Nagy, Nora"]
[Result "0-1"]
[ECO "B47"]
[WhiteElo "1474"]
[BlackElo "1818"]
[Annotator "NA RC"]
[PlyCount "64"]
[EventDate "2024.03.31"]
[EventType "swiss"]
[EventCountry "HUN"]
[SourceTitle "playchess.com"]
[Source "ChessBase"]
[SourceQuality "1"]
[TimeControl "5400+30"]

1. e4 {[%emt 0:00:02]} c5 {[%emt 0:00:07]} 2. Nf3 {[%emt 0:00:07]} e6 {[%emt 0:00:06]} 3. d4 {[%emt 0:00:06]} cxd4 {[%emt 0:00:08]} 4. Nxd4 {[%emt 0:00:10]} Nc6 {[%emt 0:00:22]} 5. Nc3 {[%emt 0:00:25]} Qc7 {[%emt 0:00:12]} 6. Ncb5 {[%emt 0:00:40]} Qb8 {[%emt 0:00:39]} 7. Bd3 {[%emt 0:01:29]} Nxd4 {[%emt 0:04:53]} 8. Nxd4 {[%emt 0:01:44]} a6 {[%emt 0:02:18]} 9. O-O {[%emt 0:01:55]} Nf6 {[%emt 0:03:07]} 10. Re1 {[%emt 0:02:32]} Be7 {[%emt 0:06:28]} 11. e5 {[%emt 0:02:25]} Nd5 {[%emt 0:02:22]} 12. Qg4 {[%emt 0:06:22]} Bf8 {[%emt 0:03:47]} 13. Bg5 {[%emt 0:03:54]} h6 {[%emt 0:13:58]} 14. Bd2 {[%emt 0:06:05]} Qa7 {[%emt 0:05:47]} 15. c3 $16 {[%emt 0:06:24]} g6 {[%emt 0:04:25]} 16. c4 {[%emt 0:02:20]} Nb4 {[%emt 0:02:33]} 17. Bxg6 {[%emt 0:03:13]} Rg8 {[%emt 0:02:23]} 18. Bxf7+ {[%emt 0:06:17]} Kxf7 {[%emt 0:00:06]} 19. Qf4+ {[%emt 0:03:32]} Ke8 {[%emt 0:01:37]} 20. Bxb4 {[%emt 0:03:54]} Bxb4 {[%emt 0:00:13]} 21. Red1 {[%emt 0:02:10]} h5 {[%emt 0:03:11]} 22. Rd3 {[%emt 0:03:05]} Rg4 {[%emt 0:01:37]} 23. Qf3 {[%emt 0:06:35]} Rxd4 {[%emt 0:01:55]} 24. Qxh5+ {[%emt 0:00:47]} Kd8 {[%emt 0:00:40]} 25. Rxd4 {[%emt 0:01:05]} Qxd4 {[%emt 0:00:07]} 26. h4 {[%emt 0:01:10]} b6 {[%emt 0:03:34]} 27. Qf3 {[%emt 0:01:26]} Rb8 {[%emt 0:00:41]} 28. h5 {[%emt 0:00:40]} Bb7 {[%emt 0:00:57]} 29. Qf6+ {[%emt 0:00:58]} Be7 {[%emt 0:01:08]} 30. Qg7 {[%emt 0:00:58]} Bc5 {[%emt 0:02:10]} 31. h6 {[%emt 0:01:57]} Qxf2+ {[%emt 0:00:17]} 32. Kh1 {[%emt 0:00:32]} Qh4# {[%emt 0:00:05]} 0-1

[Event "Hungarian Youth-ch II 2024"]
[Site "Szolnok"]
[Date "2024.04.05"]
[Round "8.6"]
[White "Miko, Biborka"]
[Black "Horvath, Adel"]
[Result "0-1"]
[ECO "B56"]
[WhiteElo "1529"]
[BlackElo "1676"]
[Annotator "NA RC"]
[PlyCount "50"]
[EventDate "2024.03.31"]
[EventType "swiss"]
[EventCountry "HUN"]
[SourceTitle "playchess.com"]
[Source "ChessBase"]
[SourceQuality "1"]
[TimeControl "5400+30"]

1. e4 {[%emt 0:00:02]} c5 {[%emt 0:00:03]} 2. Nf3 {[%emt 0:00:08]} d6 {[%emt 0:00:07]} 3. d4 {[%emt 0:00:08]} cxd4 {[%emt 0:00:06]} 4. Nxd4 {[%emt 0:00:12]} Nf6 {[%emt 0:00:07]} 5. Nc3 {[%emt 0:00:12]} Nc6 {[%emt 0:00:12]} 6. f3 {[%emt 0:02:27]} e5 {[%emt 0:00:10]} 7. Nb3 {[%emt 0:02:25]} Be7 {[%emt 0:01:15]} 8. Be3 {[%emt 0:01:26]} Be6 {[%emt 0:00:17]} 9. Qd2 {[%emt 0:01:48]} d5 {[%emt 0:00:46]} 10. exd5 {[%emt 0:00:54]} Nxd5 {[%emt 0:00:16]} 11. Nxd5 {[%emt 0:00:49]} Qxd5 {[%emt 0:00:08]} 12. Qf2 {[%emt 0:06:14]} e4 {[%emt 0:23:58]} 13. fxe4 {[%emt 0:03:35]} Qxe4 {[%emt 0:00:24]} 14. O-O-O {[%emt 0:02:10]} O-O {[%emt 0:02:13]} 15. Bd3 {[%emt 0:02:35]} Qe5 {[%emt 0:00:46]} 16. Rhg1 {[%emt 0:10:24]} Bxb3 {[%emt 0:11:29]} 17. cxb3 {[%emt 0:06:04]} Nb4 {[%emt 0:04:55]} 18. Kb1 {[%emt 0:03:37]} Rfd8 {[%emt 0:05:29]} 19. Bc4 {[%emt 0:04:58]} Qe4+ {[%emt 0:04:41]} 20. Ka1 {[%emt 0:00:58]} Nc2+ {[%emt 0:00:28]} 21. Kb1 {[%emt 0:00:18]} Nxe3+ {[%emt 0:04:25]} 22. Kc1 {[%emt 0:00:20]} Rxd1+ {[%emt 0:01:10]} 23. Rxd1 {[%emt 0:00:16]} Nxd1 {[%emt 0:00:36]} 24. Kxd1 {[%emt 0:01:36]} Rd8+ {[%emt 0:00:20]} 25. Kc1 {[%emt 0:00:31]} Bg5+ {[%emt 0:00:19]} 0-1

[Event "Hungarian Youth-ch II 2024"]
[Site "Szolnok"]
[Date "2024.04.05"]
[Round "8.7"]
[White "Vadkerti, Anna"]
[Black "Kiss, Villo"]
[Result "1-0"]
[ECO "B23"]
[WhiteElo "1502"]
[BlackElo "1519"]
[Annotator "NA RC"]
[PlyCount "47"]
[EventDate "2024.03.31"]
[EventType "swiss"]
[EventCountry "HUN"]
[SourceTitle "playchess.com"]
[Source "ChessBase"]
[SourceQuality "1"]
[TimeControl "5400+30"]

1. e4 {[%emt 0:00:03]} c5 {[%emt 0:00:07]} 2. Nc3 {[%emt 0:00:07]} d6 {[%emt 0:00:19]} 3. g3 {[%emt 0:00:12]} Nc6 {[%emt 0:01:24]} 4. Bg2 {[%emt 0:00:19]} Nf6 {[%emt 0:00:47]} 5. d3 {[%emt 0:00:21]} e6 {[%emt 0:01:00]} 6. Be3 {[%emt 0:01:08]} Be7 {[%emt 0:04:25]} 7. f4 {[%emt 0:01:36]} O-O {[%emt 0:04:09]} 8. Nge2 {[%emt 0:00:25]} Ng4 {[%emt 0:00:48]} 9. Bd2 {[%emt 0:01:15]} Bf6 {[%emt 0:03:16]} 10. h3 {[%emt 0:02:39]} Nh6 {[%emt 0:08:05]} 11. g4 {[%emt 0:02:35]} Bh4+ {[%emt 0:08:26]} 12. Kf1 {[%emt 0:00:44]} f6 {[%emt 0:02:08]} 13. Bf3 {[%emt 0:06:54]} b6 14. Be1 {[%emt 0:02:19]} Bxe1 {[%emt 0:13:20]} 15. Qxe1 {[%emt 0:02:06]} Bb7 {[%emt 0:02:15]} 16. h4 {[%emt 0:01:43]} Nf7 {[%emt 0:04:05]} 17. Kg2 {[%emt 0:04:54]} h6 {[%emt 0:02:41]} 18. Qg3 {[%emt 0:02:12]} g5 {[%emt 0:02:09]} 19. Qh3 {[%emt 0:01:27]} a6 {[%emt 0:06:07]} 20. hxg5 {[%emt 0:03:19]} fxg5 {[%emt 0:02:21]} 21. Qh5 {[%emt 0:01:24]} Kh7 {[%emt 0:02:26]} 22. e5 {[%emt 0:02:36]} dxe5 {[%emt 0:01:16]} 23. Be4+ {[%emt 0:00:27]} Kh8 {[%emt 0:01:45]} 24. Qg6 {[%emt 0:00:22]} 1-0

[Event "Hungarian Youth-ch II 2024"]
[Site "Szolnok"]
[Date "2024.04.06"]
[Round "9.1"]
[White "Balogh, Gerda"]
[Black "Biro, Beata"]
[Result "0-1"]
[ECO "A00"]
[WhiteElo "1775"]
[BlackElo "1849"]
[Annotator "NA RC"]
[PlyCount "68"]
[EventDate "2024.03.31"]
[EventType "swiss"]
[EventCountry "HUN"]
[SourceTitle "playchess.com"]
[Source "ChessBase"]
[SourceQuality "1"]
[TimeControl "5400+30"]

1. a3 {[%emt 0:00:03]} d5 {[%emt 0:00:18]} 2. d4 {[%emt 0:00:06]} Bf5 {[%emt 0:00:30]} 3. Nf3 {[%emt 0:00:40]} e6 {[%emt 0:00:21]} 4. e3 {[%emt 0:00:06]} c5 {[%emt 0:00:44]} 5. c3 {[%emt 0:00:30]} Nc6 {[%emt 0:00:46]} 6. Bd3 {[%emt 0:01:48]} Bg6 {[%emt 0:00:55]} 7. O-O {[%emt 0:04:11]} c4 {[%emt 0:00:10]} 8. Bc2 {[%emt 0:12:28]} Bd6 {[%emt 0:03:13]} 9. Nbd2 {[%emt 0:01:30]} Bxc2 {[%emt 0:03:38]} 10. Qxc2 {[%emt 0:00:46]} f5 {[%emt 0:00:30]} 11. Re1 {[%emt 0:03:19]} h6 {[%emt 0:01:01]} 12. b3 {[%emt 0:06:50]} b5 {[%emt 0:03:55]} 13. a4 {[%emt 0:02:33]} a6 {[%emt 0:02:58]} 14. b4 {[%emt 0:02:07]} Nf6 {[%emt 0:02:29]} 15. Qa2 {[%emt 0:01:56]} O-O {[%emt 0:01:37]} 16. a5 {[%emt 0:00:09]} Qe8 {[%emt 0:03:31]} 17. Qc2 {[%emt 0:09:00]} Ra7 {[%emt 0:02:07]} 18. Nf1 {[%emt 0:19:52]} g5 {[%emt 0:01:11]} 19. Qe2 {[%emt 0:07:38]} Rg7 {[%emt 0:02:14]} 20. Ng3 {[%emt 0:03:26]} Kh8 {[%emt 0:02:41]} 21. Kh1 {[%emt 0:02:22]} Ne4 {[%emt 0:06:33]} 22. Bb2 {[%emt 0:02:50]} Bxg3 {[%emt 0:03:40]} 23. fxg3 {[%emt 0:00:49]} f4 {[%emt 0:01:54]} 24. exf4 {[%emt 0:02:11]} gxf4 {[%emt 0:00:09]} 25. Bc1 {[%emt 0:02:52]} Qh5 {[%emt 0:02:19]} 26. Bxf4 {[%emt 0:01:03]} Rxf4 {[%emt 0:01:45]} 27. Kg1 {[%emt 0:00:18]} Rf6 {[%emt 0:01:02]} 28. Qe3 {[%emt 0:03:46]} Ne7 {[%emt 0:06:20]} 29. Ne5 {[%emt 0:02:58]} Nf5 {[%emt 0:00:14]} 30. Qc1 {[%emt 0:00:28]} Nfxg3 {[%emt 0:05:32]} 31. Qc2 {[%emt 0:02:14]} Nf5 {[%emt 0:00:31]} 32. Nc6 {[%emt 0:00:53]} Nh4 {[%emt 0:00:29]} 33. Nb8 {[%emt 0:01:11]} Nf3+ {[%emt 0:01:20]} 34. Kh1 {[%emt 0:00:09]} Qxh2# {[%emt 0:00:05]} 0-1

[Event "Hungarian Youth-ch II 2024"]
[Site "Szolnok"]
[Date "2024.04.06"]
[Round "9.2"]
[White "Farkas, Sara"]
[Black "Kiss, Inez"]
[Result "0-1"]
[ECO "D45"]
[WhiteElo "1693"]
[BlackElo "1896"]
[Annotator "NA RC"]
[PlyCount "52"]
[EventDate "2024.03.31"]
[EventType "swiss"]
[EventCountry "HUN"]
[SourceTitle "playchess.com"]
[Source "ChessBase"]
[SourceQuality "1"]
[TimeControl "5400+30"]

1. d4 {[%emt 0:00:03]} d5 {[%emt 0:00:10]} 2. c4 {[%emt 0:00:07]} c6 {[%emt 0:00:22]} 3. Nf3 {[%emt 0:00:11]} Nf6 {[%emt 0:00:09]} 4. Nc3 {[%emt 0:00:33]} e6 {[%emt 0:00:07]} 5. e3 {[%emt 0:01:57]} Nbd7 {[%emt 0:00:04]} 6. cxd5 {[%emt 0:03:53]} exd5 {[%emt 0:03:24]} 7. Bd3 {[%emt 0:02:12]} Bd6 {[%emt 0:00:41]} 8. O-O {[%emt 0:03:58]} O-O {[%emt 0:00:07]} 9. Re1 {[%emt 0:06:16]} Re8 {[%emt 0:01:16]} 10. Qc2 {[%emt 0:05:47]} Nf8 $11 {[%emt 0:15:11]} 11. h3 {[%emt 0:08:12]} Bd7 {[%emt 0:05:02]} 12. a3 {[%emt 0:09:07]} a5 {[%emt 0:12:18]} 13. a4 {[%emt 0:06:20]} b6 {[%emt 0:00:32]} 14. Bd2 {[%emt 0:07:05]} Ng6 {[%emt 0:07:13]} 15. Rac1 {[%emt 0:04:51]} Rc8 {[%emt 0:04:00]} 16. b3 {[%emt 0:04:12]} b5 {[%emt 0:05:01]} 17. axb5 {[%emt 0:07:16]} cxb5 {[%emt 0:00:35]} 18. Qa2 {[%emt 0:01:16]} b4 {[%emt 0:13:03]} 19. Ne2 {[%emt 0:03:35]} Ne4 {[%emt 0:02:02]} 20. Rxc8 {[%emt 0:01:47]} Bxc8 {[%emt 0:00:06]} 21. Ra1 {[%emt 0:00:59]} Bc7 {[%emt 0:00:33]} 22. Bb5 {[%emt 0:02:02]} Re6 {[%emt 0:01:13]} 23. Nc1 {[%emt 0:01:15]} Rf6 {[%emt 0:08:19]} 24. Be2 {[%emt 0:01:37]} Qd6 {[%emt 0:03:36]} 25. Nd3 {[%emt 0:01:38]} Ba6 {[%emt 0:00:45]} 26. Nc1 {[%emt 0:00:14]} Rxf3 {[%emt 0:00:57]} 0-1